bitfinex/quotes_SOLUSD_20250902
["timestamp","ask_amount","ask_price","bid_price","bid_amount"]
[1756839089249,12.03945813,205.35,205.31,13.59559401]
[1756839089453,12.03945813,205.35,205.31,14.29559401]
[1756839089656,12.03945813,205.36,205.32,0.7]
[1756839089967,12.03945813,205.33,205.21,12.21247025]
[1756839090137,12.03945813,205.31,205.28,13.59559401]
[1756839090463,12.03945813,205.32,205.28,13.59559401]
[1756839090664,12.03945813,205.3,205.25,42.14]
[1756839090956,12.03945813,205.33,205.28,0.7]
[1756839091158,12.03945813,205.33,205.28,14.29559401]
[1756839091749,4.86973459,205.35,205.25,68.14]
[1756839092056,4.86973459,205.35,205.27,13.59559401]
[1756839092256,12.03945813,205.29,205.25,68.14]
[1756839092438,17.04407108,205.35,205.25,68.14]
[1756839092439,12.03945813,205.26,205.25,42.14]
[1756839092633,12.03945813,205.26,205.21,0.73]
[1756839092861,12.03945813,205.23,205.21,0.03]
[1756839093041,12.03945813,205.25,205.21,0.03]
[1756839093243,0.22,205.3,205.21,0.73]
[1756839093448,12.03945813,205.26,205.21,0.73]
[1756839093758,5.09093067,205.3,205.22,0.7]
[1756839093943,12.03945813,205.24,205.21,0.03]
[1756839094286,12.03945813,205.24,205.23,0.03]
[1756839094448,12.03945813,205.27,205.23,0.03]
[1756839094761,12.03945813,205.26,205.23,0.03]
[1756839094938,12.03945813,205.27,205.23,0.73]
[1756839095141,12.03945813,205.27,205.23,0.03]
[1756839095341,12.03945813,205.28,205.23,12.06945813]
[1756839095542,0.06,205.33,205.26,12.03945813]
[1756839095742,0.06,205.33,205.27,25.63505214]
[1756839095743,12.09945813,205.33,205.27,25.63505214]
[1756839096147,12.09945813,205.33,205.27,26.33505214]
[1756839096362,12.03945813,205.31,205.27,13.59559401]
[1756839096744,12.03945813,205.3,205.24,38.03945813]
[1756839096941,12.03945813,205.29,205.25,13.59559401]
[1756839097362,12.03945813,205.29,205.25,14.29559401]
[1756839097754,12.03945813,205.3,205.25,30.50710735]
[1756839098071,12.03945813,205.29,205.24,26.0]
[1756839098276,12.03945813,205.29,205.25,0.7]
[1756839098570,0.06,205.33,205.32,26.0]
[1756839098753,0.06,205.33,205.32,38.03945813]
[1756839098956,0.06,205.33,205.32,57.20549827]
[1756839099366,0.06,205.33,205.32,45.16604014]
[1756839099567,0.06,205.33,205.32,57.20549827]
[1756839099876,0.06,205.33,205.32,87.61252485]
[1756839100076,0.06,205.33,205.32,99.65198298]
[1756839100596,1e-08,205.37,205.36,39.59559401]
[1756839100885,1e-08,205.37,205.36,94.08153685]
[1756839101055,1e-08,205.37,205.36,87.61157618]
[1756839101250,1e-08,205.37,205.36,99.65103431]
[1756839102083,1e-08,205.37,205.36,87.61157618]
[1756839102257,1e-08,205.37,205.36,99.65103431]
[1756839102462,1e-08,205.37,205.36,26.0]
[1756839102659,12.03945814,205.37,205.33,13.59559401]
[1756839102976,12.03945813,205.35,205.33,13.59559401]
[1756839103179,12.03945814,205.37,205.33,40.25559401]
[1756839103480,7.98178195,205.35,205.32,42.16]
[1756839103650,1e-08,205.37,205.32,42.16]
[1756839104075,1e-08,205.37,205.32,47.69044588]
[1756839104273,1e-08,205.37,205.32,42.82]
[1756839104468,1e-08,205.37,205.35,26.0]
[1756839104651,1e-08,205.37,205.36,21.57737596]
[1756839104848,1e-08,205.37,205.36,13.59559401]
[1756839105065,1e-08,205.37,205.36,27.10687342]
[1756839105283,1e-08,205.37,205.36,19.12509147]
[1756839105481,1e-08,205.37,205.36,27.10687342]
[1756839105779,1e-08,205.37,205.36,27.53335813]
[1756839107073,1e-08,205.37,205.36,22.66386067]
[1756839107670,1e-08,205.37,205.36,14.68207872]
[1756839107973,1e-08,205.37,205.36,19.55157618]
[1756839108173,1e-08,205.37,205.36,27.53335813]
[1756839108656,1e-08,205.37,205.36,28.02030787]
[1756839108976,1e-08,205.37,205.36,27.53335813]
[1756839109684,1e-08,205.38,205.37,40.02207872]
[1756839109874,7.98178195,205.52,205.37,49.1507867]
[1756839110186,0.2,205.53,205.42,13.59559401]
[1756839110187,7.98178195,205.51,205.42,13.59559401]
[1756839110360,0.22,205.52,205.44,7.98178195]
[1756839110564,7.98178195,205.52,205.46,13.59559401]
[1756839110779,7.98178195,205.52,205.47,7.98178195]
[1756839110961,0.2,205.53,205.49,18.46184358]
[1756839111278,0.2,205.53,205.51,39.59559401]
[1756839111468,0.2,205.53,205.52,13.59559401]
[1756839112293,8.18178195,205.53,205.47,39.59559401]
[1756839112467,7.98178195,205.52,205.47,39.59559401]
[1756839112661,5.06549309,205.53,205.47,47.57737596]
[1756839112884,7.98178195,205.52,205.47,47.57737596]
[1756839113073,0.06,205.52,205.49,13.59559401]
[1756839113474,0.06,205.52,205.48,13.59559401]
[1756839113860,7.98178195,205.49,205.43,42.16]
[1756839114072,7.98178195,205.47,205.43,13.59559401]
[1756839114389,7.98178195,205.45,205.36,0.66]
[1756839114558,0.22,205.51,205.41,7.98178195]
[1756839114980,0.06,205.52,205.44,13.59559401]
[1756839115167,0.06,205.52,205.47,7.98178195]
[1756839115486,0.06,205.52,205.46,13.59559401]
[1756839115487,7.98178195,205.51,205.46,13.59559401]
[1756839115695,7.98178195,205.49,205.45,26.0]
[1756839115881,7.98178195,205.51,205.46,7.98178195]
[1756839116071,0.06,205.52,205.46,21.57737596]
[1756839116274,7.98178195,205.5,205.45,26.0]
[1756839116477,7.98178195,205.49,205.45,26.0]
[1756839116681,0.06,205.52,205.45,26.0]
[1756839116682,7.98178195,205.48,205.45,26.0]
[1756839117099,4.86689054,205.47,205.41,55.75559401]
[1756839117276,12.84867249,205.47,205.42,7.98178195]
[1756839117477,0.06,205.52,205.46,7.98178195]
[1756839117780,7.98178195,205.5,205.44,13.59559401]
[1756839117987,4.92572283,205.52,205.44,21.57737596]
[1756839118188,4.92572283,205.52,205.43,0.66]
[1756839118395,0.06,205.52,205.47,7.98178195]
[1756839118577,7.98178195,205.49,205.45,26.0]
[1756839118780,4.92574087,205.52,205.45,26.0]
[1756839119106,7.98178195,205.47,205.43,0.66]
[1756839119403,17.09000712,205.52,205.42,13.59559401]
[1756839119404,0.22,205.51,205.42,39.59559401]
[1756839119587,17.09000712,205.52,205.43,7.98178195]
[1756839119900,7.98178195,205.48,205.43,7.98178195]
[1756839120070,7.98178195,205.48,205.44,0.66]
[1756839120271,7.98178195,205.45,205.44,0.66]
[1756839120472,8.20178195,205.45,205.44,0.66]
[1756839120772,8.20178195,205.45,205.36,7.98178195]
[1756839120975,7.98178195,205.38,205.33,0.03]
[1756839121171,7.98178195,205.34,205.33,0.03]
[1756839121376,0.22,205.37,205.33,0.03]
[1756839121633,7.98178195,205.34,205.33,0.03]
[1756839121777,0.22,205.37,205.33,0.03]
[1756839121980,7.98178195,205.34,205.33,0.03]
[1756839122306,7.98178195,205.34,205.28,0.69]
[1756839122307,8.20178195,205.34,205.28,0.03]
[1756839122488,7.98178195,205.31,205.28,0.03]
[1756839122804,0.22,205.33,205.28,0.03]
[1756839123024,10.51152468,205.48,205.31,0.66]
[1756839123187,10.51152468,205.48,205.36,7.98178195]
[1756839123188,7.98178195,205.42,205.36,7.98178195]
[1756839123382,7.98178195,205.43,205.38,7.98178195]
[1756839123718,4.86665368,205.48,205.42,7.98178195]
[1756839123916,0.06,205.52,205.44,7.98178195]
[1756839124114,7.98178195,205.49,205.46,26.0]
[1756839124277,0.06,205.52,205.46,26.0]
[1756839124483,0.06,205.52,205.48,13.59559401]
[1756839124877,7.98178195,205.5,205.47,0.66]
[1756839125195,0.06,205.52,205.48,0.66]
[1756839125403,8.04178195,205.52,205.48,0.66]
[1756839125589,12.90749436,205.52,205.48,0.66]
[1756839126105,0.06,205.52,205.49,0.66]
[1756839126283,0.06,205.52,205.5,0.66]
[1756839127317,0.06,205.52,205.51,14.25559401]
[1756839127682,0.06,205.52,205.51,0.66]
[1756839128321,0.06,205.52,205.48,26.0]
[1756839128620,7.98178195,205.51,205.45,33.98178195]
[1756839128822,7.98178195,205.51,205.46,14.25559401]
[1756839129023,7.98178195,205.51,205.47,0.66]
[1756839129206,12.84774672,205.51,205.47,0.66]
[1756839129407,4.86596477,205.51,205.47,0.66]
[1756839129610,12.84774672,205.51,205.47,0.66]
[1756839129794,0.06,205.52,205.48,0.66]
[1756839130194,7.98178195,205.51,205.45,33.98178195]
[1756839130522,7.98178195,205.46,205.34,4.86997175]
[1756839130824,7.98178195,205.41,205.34,42.66]
[1756839130999,7.98178195,205.39,205.35,0.66]
[1756839131201,0.22,205.47,205.35,0.66]
[1756839131202,7.98178195,205.38,205.35,0.66]
[1756839131425,7.98178195,205.38,205.28,12.20819248]
[1756839131426,7.98178195,205.37,205.36,0.71]
[1756839131633,7.98178195,205.37,205.33,0.71]
[1756839131812,7.98178195,205.37,205.34,0.71]
[1756839132016,7.98178195,205.37,205.35,0.71]
[1756839132322,4.86815982,205.42,205.32,7.98178195]
[1756839132492,4.86815982,205.42,205.35,26.0]
[1756839132692,7.98178195,205.36,205.35,26.0]
[1756839132899,7.98178195,205.36,205.3,0.03]
[1756839133248,26.0,205.47,205.3,0.03]
[1756839133249,0.06,205.51,205.35,7.98178195]
[1756839133537,0.06,205.51,205.5,33.98178195]
[1756839133733,0.06,205.51,205.5,8.40826666]
[1756839133936,0.06,205.51,205.5,0.91310271]
[1756839134115,0.06,205.51,205.5,8.89488466]
[1756839134309,0.06,205.51,205.5,23.20047867]
[1756839134506,0.06,205.51,205.5,15.21869672]
[1756839134902,0.06,205.51,205.5,60.11869672]
[1756839135126,0.06,205.51,205.5,72.96665871]
[1756839135315,0.06,205.51,205.5,64.98487676]
[1756839135505,0.06,205.51,205.5,23.20047867]
[1756839135712,0.06,205.51,205.5,40.73207872]
[1756839135922,0.06,205.51,205.5,40.30559401]
[1756839136129,0.06,205.51,205.5,26.0]
[1756839136520,0.06,205.51,205.49,45.12]
[1756839136722,0.06,205.51,205.49,45.83]
[1756839137507,0.06,205.51,205.5,14.02207872]
[1756839137715,0.06,205.51,205.5,15.21869672]
[1756839137927,0.06,205.51,205.5,14.79221201]
[1756839138124,0.06,205.51,205.5,85.75207872]
[1756839138413,0.06,205.51,205.5,39.59559401]
[1756839138628,0.06,205.51,205.5,49.20047867]
[1756839139229,0.06,205.51,205.5,54.06665871]
[1756839139634,0.06,205.51,205.5,28.06665871]
[1756839139831,0.06,205.51,205.46,0.48671274]
[1756839140012,0.06,205.51,205.5,39.59559401]
[1756839140526,0.06,205.51,205.5,48.71386067]
[1756839140729,0.06,205.51,205.5,40.73207872]
[1756839141737,0.06,205.51,205.5,40.02207872]
[1756839141933,0.06,205.51,205.47,1.19668905]
[1756839142138,7.98178195,205.5,205.46,44.86]
[1756839142341,0.06,205.51,205.47,48.28737596]
[1756839142838,0.06,205.51,205.47,40.30559401]
[1756839143525,8.04178195,205.51,205.47,40.30559401]
[1756839143720,7.98178195,205.49,205.46,13.59559401]
[1756839143932,7.98178195,205.49,205.47,44.8]
[1756839144240,7.98178195,205.48,205.45,26.0]
[1756839144546,0.06,205.51,205.47,21.57737596]
[1756839144733,0.06,205.51,205.49,21.57737596]
[1756839144910,0.06,205.51,205.49,7.98178195]
[1756839145119,0.06,205.51,205.46,27.13648471]
[1756839145317,0.06,205.51,205.47,44.66]
[1756839145530,8.04178195,205.51,205.47,44.66]
[1756839145735,0.06,205.51,205.47,44.66]
[1756839145928,0.06,205.51,205.46,33.98178195]
[1756839145929,8.04178195,205.51,205.46,33.98178195]
[1756839146129,7.98178195,205.48,205.46,26.0]
[1756839146823,0.06,205.51,205.46,26.0]
[1756839147027,0.06,205.51,205.48,13.59559401]
[1756839147222,0.06,205.51,205.5,22.00386067]
[1756839147741,0.06,205.51,205.5,27.58004071]
[1756839148443,0.06,205.51,205.49,26.0]
[1756839148644,0.06,205.51,205.5,44.6]
[1756839148948,0.06,205.51,205.5,52.58178195]
[1756839149118,0.06,205.51,205.5,44.6]
[1756839149822,0.06,205.51,205.5,49.46618004]
[1756839150035,0.06,205.51,205.5,44.64]
[1756839150248,0.06,205.51,205.49,26.0]
[1756839150426,0.06,205.51,205.3,24.47457274]
[1756839150427,8.65178195,205.5,205.43,13.59559401]
[1756839150618,0.06,205.51,205.45,21.57737596]
[1756839150818,0.06,205.51,205.48,7.98178195]
[1756839151046,0.06,205.51,205.5,7.98178195]
[1756839151229,0.06,205.51,205.49,52.52178195]
[1756839151427,0.06,205.51,205.5,22.77399396]
[1756839151745,0.06,205.51,205.5,31.65752429]
[1756839151943,0.06,205.51,205.5,23.67574234]
[1756839152117,0.06,205.51,205.5,31.65752429]
[1756839152520,0.06,205.51,205.5,68.17574234]
[1756839152719,0.06,205.51,205.5,76.19752429]
[1756839153255,0.06,205.51,205.5,75.70838056]
[1756839153551,0.06,205.51,205.5,70.963556]
[1756839153752,0.06,205.51,205.5,75.26142799]
[1756839153936,0.06,205.51,205.5,71.673556]
[1756839154139,0.06,205.51,205.5,75.26088032]
[1756839154656,0.06,205.51,205.5,71.673556]
[1756839155035,0.06,205.51,205.5,17.18175165]
[1756839155233,0.06,205.51,205.5,44.42]
[1756839155443,0.73,205.51,205.43,0.48678381]
[1756839155732,7.98178195,205.44,205.41,3.5887964]
[1756839155932,0.67,205.48,205.42,26.0]
[1756839156144,7.98178195,205.47,205.42,26.0]
[1756839156338,5.59594508,205.51,205.43,13.59559401]
[1756839156555,5.59594508,205.51,205.42,26.0]
[1756839156556,7.98178195,205.47,205.42,26.0]
[1756839156717,7.98178195,205.47,205.44,44.44]
[1756839156923,7.98178195,205.46,205.44,44.44]
[1756839157340,0.06,205.51,205.45,13.59559401]
[1756839157657,7.98178195,205.47,205.44,44.44]
[1756839158436,4.86642461,205.49,205.44,44.44]
[1756839158661,7.98178195,205.48,205.44,44.44]
[1756839158949,7.98178195,205.49,205.44,50.01755301]
[1756839159262,0.06,205.51,205.46,7.98178195]
[1756839159460,0.06,205.51,205.5,33.98178195]
[1756839159662,0.06,205.51,205.5,101.26363889]
[1756839159962,0.06,205.52,205.51,14.02207872]
[1756839160120,0.06,205.52,205.51,26.78743517]
[1756839160325,0.2,205.53,205.52,22.00386067]
[1756839160553,0.2,205.53,205.52,26.30084085]
[1756839160855,1e-08,205.54,205.53,14.02207872]
[1756839161047,1e-08,205.54,205.53,71.08738782]
[1756839161252,1e-08,205.54,205.53,63.08560587]
[1756839161556,1e-08,205.54,205.53,26.78738782]
[1756839161731,1e-08,205.54,205.53,75.91285758]
[1756839162348,0.46267988,205.6,205.59,26.42648471]
[1756839162659,0.46267988,205.6,205.59,84.24207872]
[1756839162827,0.46267988,205.6,205.59,83.81559401]
[1756839163029,0.46267988,205.6,205.59,26.0]
[1756839163229,0.46267988,205.6,205.59,70.22]
[1756839164041,0.46267988,205.6,205.59,26.0]
[1756839164244,0.46267988,205.6,205.59,44.14]
[1756839164441,0.46267988,205.6,205.57,13.59559401]
[1756839164645,12.01355819,205.59,205.58,26.0]
[1756839164841,12.01355819,205.59,205.58,70.14]
[1756839165247,0.46267988,205.6,205.58,44.12]
[1756839165430,12.47623807,205.6,205.58,44.12]
[1756839165757,0.46267988,205.6,205.58,44.12]
[1756839165966,12.47623807,205.6,205.58,44.12]
[1756839166140,0.46267988,205.6,205.58,44.12]
[1756839166336,0.46267988,205.6,205.58,44.82]
[1756839166682,0.46267988,205.6,205.59,26.73563691]
[1756839167038,0.46267988,205.6,205.59,13.59559401]
[1756839167245,0.46267988,205.6,205.59,58.06207872]
[1756839167429,0.46267988,205.6,205.59,70.07563691]
[1756839167625,0.52267988,205.6,205.56,26.0]
[1756839167845,0.52267988,205.6,205.49,14.63]
[1756839167846,0.7,205.59,205.5,0.7]
[1756839168045,12.01355819,205.55,205.52,13.59559401]
[1756839168249,0.52267988,205.6,205.53,0.7]
[1756839168461,0.52267988,205.6,205.54,57.59559401]
[1756839168760,5.38650878,205.6,205.54,13.59559401]
[1756839169075,5.38650878,205.6,205.43,0.48678381]
[1756839169076,12.01355819,205.55,205.47,0.7]
[1756839169271,12.01355819,205.54,205.51,26.0]
[1756839169438,12.01355819,205.55,205.52,43.96]
[1756839169770,0.7,205.59,205.52,43.96]
[1756839169929,12.01355819,205.57,205.52,43.96]
[1756839170128,12.01355819,205.57,205.52,44.66]
[1756839170339,12.01355819,205.57,205.53,18.46106377]
[1756839170557,12.01355819,205.57,205.53,13.59559401]
[1756839170891,12.01355819,205.56,205.53,13.59559401]
[1756839171555,12.01355819,205.54,205.52,26.0]
[1756839171875,0.7,205.55,205.52,43.88]
[1756839171876,12.01355819,205.53,205.52,43.88]
[1756839172176,12.01355819,205.54,205.52,43.88]
[1756839172550,12.01355819,205.54,205.49,39.59559401]
[1756839172853,12.01355819,205.5,205.44,13.59559401]
[1756839173069,12.01355819,205.49,205.45,73.36875391]
[1756839173376,12.01355819,205.48,205.45,43.78]
[1756839173699,12.01355819,205.49,205.45,43.78]
[1756839174154,12.01355819,205.48,205.45,43.78]
[1756839174356,0.7,205.57,205.48,13.59559401]
[1756839174573,12.01355819,205.55,205.5,12.01355819]
[1756839174751,12.01355819,205.55,205.5,12.71355819]
[1756839174953,12.01355819,205.51,205.47,69.9]
[1756839175171,12.01355819,205.5,205.49,26.0]
[1756839175385,12.01355819,205.5,205.47,43.9]
[1756839175587,12.01355819,205.51,205.47,43.9]
[1756839175763,12.01355819,205.53,205.47,56.61355819]
[1756839175955,12.01355819,205.55,205.49,12.01355819]
[1756839176159,0.7,205.57,205.5,55.85355819]
[1756839176370,0.7,205.57,205.5,43.84]
[1756839176371,12.01355819,205.55,205.5,43.84]
[1756839176658,12.01355819,205.53,205.5,43.84]
[1756839177082,12.01355819,205.54,205.5,43.84]
[1756839177264,12.01355819,205.53,205.5,43.84]
[1756839178082,12.01355819,205.53,205.47,0.7]
[1756839178083,12.01355819,205.53,205.49,69.78]
[1756839178250,12.01355819,205.58,205.53,13.59559401]
[1756839178453,12.01355819,205.57,205.52,26.0]
[1756839178667,12.01355819,205.57,205.53,43.7]
[1756839179087,12.01355819,205.55,205.53,43.68]
[1756839179464,12.01355819,205.55,205.54,26.0]
[1756839179668,12.01355819,205.55,205.48,0.14216157]
[1756839179865,12.01355819,205.52,205.49,86.83395712]
[1756839180065,12.01355819,205.53,205.49,83.23559401]
[1756839180272,12.01355819,205.51,205.48,13.59559401]
[1756839180587,12.01355819,205.49,205.46,43.62]
[1756839180790,0.7,205.56,205.48,25.6091522]
[1756839180989,12.01355819,205.54,205.49,59.18941462]
[1756839181165,12.01355819,205.53,205.49,43.58]
[1756839181586,12.01355819,205.5,205.47,57.17559401]
[1756839181760,12.01355819,205.5,205.44,38.71355819]
[1756839181961,12.01355819,205.5,205.47,43.54]
[1756839182155,0.7,205.57,205.48,12.71355819]
[1756839182373,12.01355819,205.55,205.49,16.87997504]
[1756839182579,12.01355819,205.54,205.49,4.86641685]
[1756839182900,12.01355819,205.54,205.48,13.59559401]
[1756839182901,0.7,205.54,205.48,13.59559401]
[1756839183185,12.01355819,205.53,205.48,13.59559401]
[1756839183403,12.01355819,205.5,205.45,5.29378452]
[1756839183688,4.86474739,205.57,205.45,5.29378452]
[1756839183689,0.7,205.55,205.47,43.48]
[1756839183896,12.01355819,205.5,205.47,43.48]
[1756839184062,12.01355819,205.48,205.42,13.59559401]
[1756839184388,12.01355819,205.46,205.45,26.0]
[1756839184585,12.01355819,205.46,205.38,13.59559401]
[1756839184762,12.01355819,205.45,205.41,43.42]
[1756839184962,12.01355819,205.45,205.42,3.59970863]
[1756839185164,12.01355819,205.44,205.42,3.59970863]
[1756839185394,12.01355819,205.44,205.4,47.01970863]
[1756839185582,12.01355819,205.44,205.41,3.59970863]
[1756839185890,12.01355819,205.45,205.41,0.7]
[1756839186067,12.01355819,205.45,205.42,3.59969094]
[1756839186408,12.01355819,205.45,205.41,4.29969094]
[1756839186699,0.7,205.54,205.44,25.6091522]
[1756839186861,12.01355819,205.51,205.46,12.01355819]
[1756839187062,0.7,205.58,205.49,12.01355819]
[1756839187263,4.8640498,205.59,205.47,26.03563691]
[1756839187264,12.01355819,205.53,205.47,26.03563691]
[1756839187473,12.01355819,205.48,205.45,0.7]
[1756839187765,12.01355819,205.51,205.46,29.59681224]
[1756839187966,12.01355819,205.5,205.46,26.7]
[1756839188167,5.56528663,205.54,205.46,26.7]
[1756839188393,12.01355819,205.49,205.46,26.0]
[1756839188578,5.56528663,205.54,205.46,26.0]
[1756839188764,12.01355819,205.49,205.46,26.0]
[1756839188967,12.01355819,205.48,205.45,69.3]
[1756839189300,12.01355819,205.47,205.45,69.3]
[1756839189465,12.01355819,205.46,205.41,13.59559401]
[1756839189786,12.01355819,205.46,205.42,52.40441342]
[1756839189993,12.01355819,205.47,205.43,0.7]
[1756839190171,12.01355819,205.47,205.43,4.29633205]
[1756839191088,12.01355819,205.47,205.43,3.59633205]
[1756839191384,12.01355819,205.47,205.43,4.27633205]
[1756839191790,12.01355819,205.46,205.43,3.59633205]
[1756839191988,0.7,205.55,205.44,12.69355819]
[1756839192192,0.7,205.55,205.47,26.0]
[1756839192371,12.01355819,205.5,205.47,26.0]
[1756839192765,0.7,205.55,205.48,0.68]
[1756839192976,12.01355819,205.55,205.49,41.60841029]
[1756839193171,12.01355819,205.55,205.5,43.1]
[1756839193491,12.01355819,205.56,205.53,26.0]
[1756839194369,0.06,205.63,205.53,26.0]
[1756839194370,4.86378882,205.61,205.53,26.0]
[1756839194569,12.01355819,205.59,205.54,55.71355819]
[1756839194782,0.76,205.63,205.54,55.71355819]
[1756839194783,12.01355819,205.62,205.56,12.01355819]
[1756839195172,0.06,205.63,205.59,26.0]
[1756839195479,12.01355819,205.62,205.59,26.0]
[1756839195677,0.06,205.63,205.59,0.28432314]
[1756839195890,0.06,205.63,205.59,30.30087229]
[1756839196285,0.06,205.63,205.59,26.71563691]
[1756839196607,1e-08,205.63,205.62,14.02207872]
[1756839196781,1e-08,205.63,205.62,73.08544703]
[1756839196983,1e-08,205.63,205.62,30.78544703]
[1756839197591,1e-08,205.63,205.62,78.60878717]
[1756839197898,1e-08,205.63,205.62,35.64878717]
[1756839198102,1e-08,205.64,205.62,78.58878717]
[1756839198275,21.05,205.69,205.68,14.02207872]
[1756839198472,21.05,205.69,205.68,30.78530516]
[1756839198677,21.05,205.69,205.68,73.70530516]
[1756839198879,18.12038119,205.7,205.69,0.14216157]
[1756839199104,0.49761188,205.81,205.8,39.87991715]
[1756839199309,0.49761188,205.81,205.8,95.44563691]
[1756839199686,0.49761188,205.81,205.8,88.77707385]
[1756839199886,0.49761188,205.81,205.8,95.40563691]
[1756839200081,0.49761188,205.81,205.8,52.03563691]
[1756839200299,0.49761188,205.81,205.77,13.59559401]
[1756839200300,1.19761188,205.81,205.77,13.59559401]
[1756839200502,1.19761188,205.81,205.79,12.01355819]
[1756839201118,0.7,205.8,205.78,54.81355819]
[1756839201283,0.49761188,205.81,205.79,12.01355819]
[1756839201685,0.7,205.8,205.75,39.59559401]
[1756839201887,0.7,205.79,205.76,54.77355819]
[1756839202217,0.7,205.78,205.74,54.77355819]
[1756839202420,0.7,205.77,205.73,42.74]
[1756839202588,0.7,205.76,205.74,12.01355819]
[1756839202907,0.7,205.76,205.73,42.74]
[1756839203083,0.7,205.75,205.73,42.74]
[1756839203289,0.7,205.74,205.7,25.6091522]
[1756839203500,12.01355819,205.76,205.7,25.6091522]
[1756839203501,0.7,205.73,205.71,42.7]
[1756839203699,0.7,205.73,205.71,54.71355819]
[1756839203898,0.7,205.73,205.71,42.7]
[1756839204101,0.7,205.72,205.69,45.22251412]
[1756839204330,0.7,205.71,205.69,2.54251412]
[1756839204496,0.7,205.7,205.69,2.54251412]
[1756839204897,0.7,205.7,205.68,42.64]
[1756839205211,17.574337,205.73,205.68,42.64]
[1756839205522,0.7,205.72,205.68,42.64]
[1756839205828,16.8750069,205.7,205.64,42.6]
[1756839206001,0.7,205.7,205.65,12.01355819]
[1756839206203,0.7,205.7,205.66,12.01355819]
[1756839206387,0.7,205.73,205.68,12.01355819]
[1756839206593,0.7,205.72,205.67,42.58]
[1756839206809,12.71355819,205.71,205.63,0.14216157]
[1756839207097,0.7,205.71,205.68,12.01355819]
[1756839207317,0.7,205.7,205.67,12.01355819]
[1756839207495,0.7,205.7,205.66,12.01355819]
[1756839207698,5.5616672,205.7,205.66,12.01355819]
[1756839208106,5.5616672,205.7,205.65,13.59559401]
[1756839208303,0.7,205.69,205.64,12.01355819]
[1756839208619,12.71355819,205.68,205.64,42.5]
[1756839208798,12.71355819,205.67,205.62,0.03]
[1756839209002,12.01355819,205.66,205.62,42.53]
[1756839209329,5.5616672,205.7,205.65,12.01355819]
[1756839209527,0.7,205.69,205.64,12.01355819]
[1756839209708,0.7,205.68,205.63,12.01355819]
[1756839209904,0.7,205.67,205.63,12.01355819]
[1756839210099,0.7,205.71,205.65,12.01355819]
[1756839210418,12.71355819,205.71,205.65,12.01355819]
[1756839210621,12.01355819,205.71,205.65,12.01355819]
[1756839210825,12.01355819,205.67,205.63,42.46]
[1756839211008,12.15125887,205.74,205.63,54.47355819]
[1756839211009,12.71355819,205.69,205.63,54.47355819]
[1756839211198,0.7,205.69,205.64,12.01355819]
[1756839211518,0.7,205.68,205.64,12.01355819]
[1756839211817,0.7,205.68,205.63,42.46]
[1756839211818,4.86215782,205.67,205.63,54.47355819]
[1756839212206,5.56215782,205.67,205.63,54.47355819]
[1756839212405,0.7,205.66,205.63,42.46]
[1756839212811,4.86215782,205.67,205.63,54.47355819]
[1756839213128,12.01355819,205.69,205.64,12.01355819]
[1756839213313,0.7,205.68,205.64,12.01355819]
[1756839213719,0.7,205.67,205.63,54.47355819]
[1756839214249,17.57595243,205.66,205.62,26.03]
[1756839214403,4.86239424,205.66,205.62,68.35]
[1756839214601,12.01355819,205.8,205.65,38.01355819]
[1756839214798,12.01355819,205.8,205.66,12.01355819]
[1756839214799,12.01355819,205.71,205.66,12.01355819]
[1756839215003,0.7,205.74,205.69,12.01355819]
[1756839215316,0.7,205.77,205.72,12.01355819]
[1756839215522,0.7,205.76,205.72,12.01355819]
[1756839215723,4.85932261,205.79,205.74,12.01355819]
[1756839216027,0.7,205.78,205.74,12.01355819]
[1756839216227,1.19761188,205.81,205.75,12.01355819]
[1756839216449,0.49761188,205.81,205.78,12.01355819]